fUSD/lending_fUSD_20250103
["ID","MTS","AMOUNT","RATE_DAILY","PERIOD"]
[347519483,1735899062297,-810.22,9.543e-05,2]
[347519484,1735899062308,-2463.78,9.543e-05,2]
[347519485,1735899062318,-500.0,9.543e-05,2]
[347519486,1735899062330,-505.48,9.543e-05,2]
[347519487,1735899062339,-1511.93,9.543e-05,2]
[347519488,1735899062350,-713.42,9.543e-05,2]
[347519489,1735899062360,-681.82,9.543e-05,2]
[347519490,1735899062371,-500.0,9.543e-05,2]
[347519491,1735899062381,-1729.67,9.543e-05,2]
[347519492,1735899062391,-500.0,9.543e-05,2]
[347519493,1735899062400,-1890.41,9.543e-05,2]
[347519494,1735899062410,-861.91,9.543e-05,2]
[347519495,1735899062420,-500.0,9.543e-05,2]
[347519496,1735899062430,-623.27,9.543e-05,2]
[347519497,1735899062440,-2615.61,9.543e-05,2]
[347519498,1735899062450,-500.0,9.543e-05,2]
[347519499,1735899062460,-928.04,9.543e-05,2]
[347519500,1735899062470,-1603.33,9.543e-05,2]
[347519501,1735899062481,-1790.99,9.543e-05,2]
[347519502,1735899062494,-500.0,9.543e-05,2]
[347519503,1735899062805,-1181.17,9.543e-05,2]
[347519504,1735899062819,-900.44,9.543e-05,2]
[347519505,1735899062829,-5029.15,9.543e-05,2]
[347519506,1735899062838,-500.0,9.543e-05,2]
[347519507,1735899062849,-659.5,9.543e-05,2]
[347519508,1735899062858,-500.0,9.543e-05,2]
[347519509,1735899062867,-1537.5,9.543e-05,2]
[347519510,1735899062878,-518.18,9.543e-05,2]
[347519511,1735899062887,-500.0,9.543e-05,2]
[347519512,1735899062897,-1052.56,9.543e-05,2]
[347519513,1735899062907,-1221.8,9.543e-05,2]
[347519514,1735899062916,-1221.9,9.543e-05,2]
[347519515,1735899062925,-703.29,9.543e-05,2]
[347519516,1735899062935,-500.0,9.543e-05,2]
[347519517,1735899062944,-1568.73,9.543e-05,2]
[347519518,1735899062954,-284.99061735,9.543e-05,2]
[347519519,1735899062965,-770.89,9.543e-05,2]
[347519520,1735899062975,-2864.54,9.543e-05,2]
[347519521,1735899062986,-2550.83,9.543e-05,2]
[347519522,1735899062998,-500.0,9.543e-05,2]
[347519523,1735899063007,-1309.1,9.543e-05,2]
[347519524,1735899063016,-3808.66,9.543e-05,2]
[347519525,1735899063025,-500.0,9.543e-05,2]
[347519526,1735899063036,-500.0,9.543e-05,2]
[347519527,1735899063046,-619.32,9.543e-05,2]
[347519528,1735899063056,-1171.02,9.543e-05,2]
[347519529,1735899063066,-500.0,9.543e-05,2]
[347519530,1735899063077,-500.0,9.543e-05,2]
[347519531,1735899063087,-8958.03,9.543e-05,2]
[347519532,1735899063097,-500.0,9.543e-05,2]
[347519533,1735899063108,-830.69,9.543e-05,2]
[347519534,1735899063118,-1117.28,9.543e-05,2]
[347519535,1735899063128,-2517.45,9.543e-05,2]
[347519536,1735899063138,-6689.28,9.543e-05,2]
[347519537,1735899063148,-1560.18,9.543e-05,2]
[347519538,1735899063158,-500.0,9.543e-05,2]
[347519539,1735899063169,-500.0,9.543e-05,2]
[347519540,1735899063180,-724.73,9.543e-05,2]
[347519541,1735899063190,-991.98,9.543e-05,2]
[347519542,1735899063201,-991.98,9.543e-05,2]
[347519543,1735899063211,-1050.38,9.543e-05,2]
[347519544,1735899063222,-1077.33,9.543e-05,2]
[347519545,1735899063232,-1375.52,9.543e-05,2]
[347519546,1735899063243,-500.0,9.543e-05,2]
[347519547,1735899063256,-3636.71,9.543e-05,2]
[347519548,1735899063266,-1529.69,9.543e-05,2]
[347519549,1735899063276,-1098.71,9.543e-05,2]
[347519550,1735899063286,-2285.33,9.543e-05,2]
[347519551,1735899063296,-1913.18,9.543e-05,2]
[347519552,1735899063306,-1082.25,9.543e-05,2]
[347519553,1735899063317,-500.0,9.543e-05,2]
[347519554,1735899063327,-1277.18,9.543e-05,2]
[347519555,1735899063337,-500.0,9.543e-05,2]
[347519556,1735899063351,-1029.72,9.544e-05,2]
[347519557,1735899063363,-500.0,9.544e-05,2]
[347519558,1735899063373,-798.98,9.544e-05,2]
[347519559,1735899063384,-882.59,9.544e-05,2]
[347519560,1735899063394,-363.69946719,9.544e-05,2]
[347519561,1735899063405,-612.21,9.544e-05,2]
[347519562,1735899063415,-500.0,9.544e-05,2]
[347519563,1735899063425,-500.0,9.544e-05,2]
[347519564,1735899063435,-613.58,9.544e-05,2]
[347519565,1735899063444,-500.0,9.544e-05,2]
[347519566,1735899063454,-595.83,9.544e-05,2]
[347519567,1735899063464,-500.0,9.544e-05,2]
[347519568,1735899063475,-679.99,9.544e-05,2]
[347519569,1735899063485,-500.0,9.544e-05,2]
[347519570,1735899063495,-675.44,9.544e-05,2]
[347519571,1735899063505,-1018.47,9.544e-05,2]
[347519572,1735899063514,-602.59,9.544e-05,2]
[347519573,1735899063525,-500.0,9.544e-05,2]
[347519574,1735899063535,-500.0,9.544e-05,2]
[347519575,1735899063546,-2186.36,9.544e-05,2]
[347519576,1735899063556,-1190.28,9.544e-05,2]
[347519577,1735899063567,-1344.27,9.544e-05,2]
[347519578,1735899063577,-500.0,9.544e-05,2]
[347519579,1735899063587,-532.00755163,9.544e-05,2]
[347519580,1735899063598,-1189.45,9.544e-05,2]
[347519581,1735899063608,-500.0,9.544e-05,2]
[347519582,1735899063618,-1005.51,9.544e-05,2]
[347519583,1735899063628,-871.65,9.544e-05,2]
[347519584,1735899063638,-1819.57,9.544e-05,2]
[347519585,1735899063648,-500.0,9.544e-05,2]
[347519586,1735899063658,-500.0,9.544e-05,2]
[347519587,1735899063668,-500.0,9.544e-05,2]
[347519588,1735899063677,-500.0,9.544e-05,2]
[347519589,1735899063687,-204.71361734,9.544e-05,2]
[347519590,1735899063697,-825.05,9.544e-05,2]
[347519591,1735899063706,-686.33,9.544e-05,2]
[347519592,1735899063716,-1411.86,9.544e-05,2]
[347519593,1735899063726,-500.0,9.544e-05,2]
[347519594,1735899063736,-968.58,9.544e-05,2]
[347519595,1735899063748,-630.92,9.544e-05,2]
[347519596,1735899063758,-1681.53,9.544e-05,2]
[347519597,1735899063768,-500.0,9.544e-05,2]
[347519598,1735899063778,-642.45,9.544e-05,2]
[347519599,1735899063787,-571.21,9.544e-05,2]
[347519600,1735899063797,-991.98,9.544e-05,2]
[347519601,1735899063814,-1375.52,9.544e-05,2]
[347519602,1735899063823,-1375.52,9.544e-05,2]
[347519603,1735899063832,-498.77,9.544e-05,2]
[347519604,1735899063842,-1438.18,9.545e-05,2]
[347519605,1735899063852,-1063.23,9.545e-05,2]
[347519606,1735899063861,-946.14,9.545e-05,2]
[347519607,1735899063871,-1612.52,9.545e-05,2]
[347519608,1735899063881,-4413.73,9.545e-05,2]
[347519609,1735899063890,-2563.85,9.545e-05,2]
[347519610,1735899063900,-3868.2,9.545e-05,2]
[347519611,1735899063909,-9530.66,9.545e-05,2]
[347519612,1735899063919,-1104.06,9.545e-05,2]
[347519613,1735899063928,-1616.42,9.545e-05,2]
[347519614,1735899063938,-4134.766,9.545e-05,2]
[347519615,1735899063947,-184.946,9.545e-05,2]
[347519616,1735899063956,-500.0,9.545e-05,2]
[347519617,1735899063966,-5700.94,9.545e-05,2]
[347519618,1735899063975,-1344.22,9.545e-05,2]
[347519619,1735899063985,-1684.4,9.545e-05,2]
[347519620,1735899063995,-3955.13,9.545e-05,2]
[347519621,1735899064005,-500.0,9.545e-05,2]
[347519622,1735899064014,-3036.34,9.545e-05,2]
[347519623,1735899064024,-2680.62,9.545e-05,2]
[347519624,1735899064033,-2064.58,9.545e-05,2]
[347519625,1735899064043,-2494.75,9.545e-05,2]
[347519626,1735899064052,-2104.05,9.545e-05,2]
[347519627,1735899064062,-991.98,9.545e-05,2]
[347519628,1735899064071,-1375.52,9.545e-05,2]
[347519629,1735899064081,-991.98,9.557e-05,2]
[347519630,1735899064091,-991.98,9.557e-05,2]
[347519631,1735899064101,-1375.52,9.557e-05,2]
[347519632,1735899064111,-1375.52,9.557e-05,2]
[347519633,1735899064121,-873.46,9.589e-05,2]
[347519634,1735899064131,-800.0,9.59e-05,2]
[347519635,1735899064141,-596.0,9.592e-05,2]
[347519636,1735899064152,-991.98,9.597e-05,2]
[347519637,1735899064162,-991.98,9.597e-05,2]
[347519638,1735899064173,-1375.52,9.597e-05,2]
[347519639,1735899064183,-2014.0,9.609e-05,2]
[347519640,1735899064193,-1267.0,9.609e-05,2]
[347519641,1735899064203,-634.0,9.609e-05,2]
[347519642,1735899064212,-150.0,9.609e-05,2]
[347519643,1735899064223,-566.0,9.609e-05,2]
[347519644,1735899064233,-1859.0,9.609e-05,2]
[347519645,1735899064244,-1258.0,9.609e-05,2]
[347519646,1735899064254,-3775.0,9.609e-05,2]
[347519647,1735899064264,-819.0,9.609e-05,2]
[347519648,1735899064274,-918.0,9.609e-05,2]
[347519649,1735899064284,-536.0,9.609e-05,2]
[347519650,1735899064294,-3721.0,9.609e-05,2]
[347519651,1735899064304,-3893.0,9.609e-05,2]
[347519652,1735899064314,-1172.0,9.609e-05,2]
[347519653,1735899064324,-150.0,9.609e-05,2]
[347519654,1735899064334,-9612.0,9.609e-05,2]
[347519655,1735899064343,-160.73,9.615e-05,2]
[347519656,1735899064353,-867.38,9.616e-05,2]
[347519657,1735899064363,-436.61,9.616e-05,2]
[347519658,1735899064373,-1375.52,9.649e-05,2]
[347519659,1735899064383,-991.98,9.749e-05,2]
[347519660,1735899064393,-991.98,9.749e-05,2]
[347519661,1735899064403,-991.98,9.749e-05,2]
[347519662,1735899064414,-991.98,9.749e-05,2]
[347519663,1735899064423,-991.98439144,9.749e-05,2]
[347519664,1735899064433,-1375.52,9.749e-05,2]
[347519665,1735899064443,-1375.52,9.749e-05,2]
[347519666,1735899064452,-1375.52,9.749e-05,2]
[347519667,1735899064463,-1375.52,9.749e-05,2]
[347519668,1735899064472,-1375.5621969,9.749e-05,2]
[347519669,1735899064481,-4114.927617,9.757e-05,2]
[347519670,1735899064491,-8310.454188,9.757e-05,2]
[347519671,1735899064500,-259.071616,9.757e-05,2]
[347519672,1735899064510,-163.598797,9.757e-05,2]
[347519673,1735899064520,-4114.927617,9.762e-05,2]
[347519674,1735899064530,-8310.454188,9.762e-05,2]
[347519675,1735899064539,-259.071616,9.762e-05,2]
[347519676,1735899064549,-163.598797,9.762e-05,2]
[347519677,1735899064559,-4114.927617,9.768e-05,2]
[347519678,1735899064569,-8310.454188,9.768e-05,2]
[347519679,1735899064579,-259.071616,9.768e-05,2]
[347519680,1735899064589,-163.598797,9.768e-05,2]
[347519681,1735899064599,-152.53,9.769e-05,2]
[347519682,1735899064609,-1400.0,9.8e-05,3]
[347519683,1735899064619,-150.0,9.808e-05,2]
[347519684,1735899064629,-150.0,9.808e-05,2]
[347519685,1735899064639,-150.0,9.808e-05,2]
[347519686,1735899064649,-150.0,9.808e-05,2]
[347519687,1735899064659,-1094.62,9.814e-05,2]
[347519688,1735899064668,-5519.88,9.814e-05,2]
[347519689,1735899064677,-8601.42,9.814e-05,2]
[347519690,1735899064687,-4538.46,9.814e-05,2]
[347519691,1735899064696,-5336.48,9.814e-05,2]
[347519692,1735899064706,-1921.95,9.814e-05,2]
[347519693,1735899064715,-8397.78,9.814e-05,2]
[347519694,1735899064724,-587.29,9.814e-05,2]
[347519695,1735899064734,-935.4,9.814e-05,2]
[347519696,1735899064745,-3088.2,9.814e-05,2]
[347519697,1735899064755,-2714.05,9.814e-05,2]
[347519698,1735899064764,-565.9,9.814e-05,2]
[347519699,1735899064774,-1297.19,9.814e-05,2]
[347519700,1735899064783,-500.0,9.815e-05,2]
[347519701,1735899064792,-577.59,9.815e-05,2]
[347519702,1735899064803,-500.0,9.815e-05,2]
[347519703,1735899064813,-645.02,9.815e-05,2]
[347519704,1735899064822,-726.27,9.815e-05,2]
[347519705,1735899064831,-500.0,9.815e-05,2]
[347519706,1735899064840,-829.14,9.815e-05,2]
[347519707,1735899064851,-1142.1,9.815e-05,2]
[347519708,1735899064861,-500.0,9.815e-05,2]
[347519709,1735899064870,-1109.54,9.815e-05,2]
[347519710,1735899064882,-1942.66,9.815e-05,2]
[347519711,1735899064892,-500.0,9.815e-05,2]
[347519712,1735899064901,-500.0,9.815e-05,2]
[347519713,1735899064911,-544.20346807,9.815e-05,2]
[347519714,1735899064920,-683.56,9.815e-05,2]
[347519715,1735899064930,-500.0,9.815e-05,2]
[347519716,1735899064939,-1012.61,9.815e-05,2]
[347519717,1735899064949,-1140.29,9.815e-05,2]
[347519718,1735899064958,-500.0,9.815e-05,2]
[347519719,1735899064967,-500.0,9.815e-05,2]
[347519720,1735899064976,-2278.61,9.815e-05,2]
[347519721,1735899064986,-500.0,9.815e-05,2]
[347519722,1735899064998,-932.47,9.815e-05,2]
[347519723,1735899065007,-500.0,9.815e-05,2]
[347519724,1735899065017,-563.98,9.815e-05,2]
[347519725,1735899065027,-1971.07,9.815e-05,2]
[347519726,1735899065037,-509.07611474,9.815e-05,2]
[347519727,1735899065046,-868.76,9.815e-05,2]
[347519728,1735899065056,-675.57,9.815e-05,2]
[347519729,1735899065066,-500.0,9.815e-05,2]
[347519730,1735899065076,-1949.24,9.815e-05,2]
[347519731,1735899065086,-500.0,9.815e-05,2]
[347519732,1735899065096,-500.0,9.815e-05,2]
[347519733,1735899065106,-1022.48,9.815e-05,2]
[347519734,1735899065115,-500.0,9.815e-05,2]
[347519735,1735899065125,-500.0,9.815e-05,2]
[347519736,1735899065135,-1644.67,9.815e-05,2]
[347519737,1735899065144,-1142.02,9.815e-05,2]
[347519738,1735899065230,-589.18,9.815e-05,2]
[347519739,1735899065239,-500.0,9.815e-05,2]
[347519740,1735899065249,-894.74,9.815e-05,2]
[347519741,1735899065258,-1175.17,9.815e-05,2]
[347519742,1735899065267,-500.0,9.815e-05,2]
[347519743,1735899065276,-1975.39,9.815e-05,2]
[347519744,1735899065286,-1210.29,9.815e-05,2]
[347519745,1735899065296,-1116.18,9.815e-05,2]
[347519746,1735899065306,-500.0,9.815e-05,2]
[347519747,1735899065316,-1173.56,9.815e-05,2]
[347519748,1735899065325,-500.0,9.815e-05,2]
[347519749,1735899065335,-577.12,9.815e-05,2]
[347519750,1735899065345,-323.48192023,9.815e-05,2]
[347519751,1735899065354,-500.0,9.815e-05,2]
[347519752,1735899065363,-600.51,9.815e-05,2]
[347519753,1735899065372,-500.0,9.815e-05,2]
[347519754,1735899065382,-500.0,9.815e-05,2]
[347519755,1735899065391,-500.0,9.815e-05,2]
[347519756,1735899065400,-739.18,9.815e-05,2]
[347519757,1735899065410,-519.15,9.815e-05,2]
[347519758,1735899065419,-500.0,9.815e-05,2]
[347519759,1735899065427,-869.67,9.815e-05,2]
[347519760,1735899065437,-500.0,9.815e-05,2]
[347519761,1735899065446,-1873.32,9.815e-05,2]
[347519762,1735899065455,-500.0,9.815e-05,2]
[347519763,1735899065464,-500.0,9.815e-05,2]
[347519764,1735899065473,-500.0,9.815e-05,2]
[347519765,1735899065482,-867.14,9.815e-05,2]
[347519766,1735899065493,-1378.53,9.815e-05,2]
[347519767,1735899065503,-500.0,9.815e-05,2]
[347519768,1735899065513,-521.11832806,9.815e-05,2]
[347519769,1735899065522,-500.0,9.815e-05,2]
[347519770,1735899065531,-500.0,9.815e-05,2]
[347519771,1735899065540,-500.0,9.815e-05,2]
[347519772,1735899065549,-750.91,9.815e-05,2]
[347519773,1735899065558,-275.99524734,9.815e-05,2]
[347519774,1735899065567,-500.0,9.815e-05,2]
[347519775,1735899065576,-2478.91,9.815e-05,2]
[347519776,1735899065585,-500.0,9.815e-05,2]
[347519777,1735899065594,-500.0,9.815e-05,2]
[347519778,1735899065603,-500.0,9.815e-05,2]
[347519779,1735899065613,-500.0,9.815e-05,2]
[347519780,1735899065622,-2210.58,9.815e-05,2]
[347519781,1735899065634,-500.0,9.815e-05,2]
[347519782,1735899065644,-500.0,9.815e-05,2]
[347519783,1735899065653,-500.0,9.815e-05,2]
[347519784,1735899065662,-534.88,9.815e-05,2]
[347519785,1735899065672,-639.75,9.815e-05,2]
[347519786,1735899065683,-500.0,9.815e-05,2]
[347519787,1735899065693,-1309.77,9.815e-05,2]
[347519788,1735899065703,-500.0,9.815e-05,2]
[347519789,1735899065712,-500.0,9.815e-05,2]
[347519790,1735899065722,-500.0,9.815e-05,2]
[347519791,1735899065731,-500.0,9.815e-05,2]
[347519792,1735899065741,-636.37,9.815e-05,2]
[347519793,1735899065750,-500.0,9.815e-05,2]
[347519794,1735899065759,-1498.0,9.815e-05,2]
[347519795,1735899065769,-500.0,9.815e-05,2]
[347519796,1735899065778,-502.32249419,9.815e-05,2]
[347519797,1735899065787,-2334.84,9.815e-05,2]
[347519798,1735899065796,-593.46,9.815e-05,2]
[347519799,1735899065810,-500.0,9.815e-05,2]
[347519800,1735899065819,-500.0,9.815e-05,2]
[347519801,1735899065828,-797.27,9.815e-05,2]
[347519802,1735899065837,-502.47909717,9.815e-05,2]
[347519803,1735899065847,-500.0,9.815e-05,2]
[347519804,1735899065856,-500.0,9.815e-05,2]
[347519805,1735899065865,-500.0,9.815e-05,2]
[347519806,1735899065874,-500.0,9.815e-05,2]
[347519807,1735899065884,-997.48,9.815e-05,2]
[347519808,1735899065894,-749.14,9.815e-05,2]
[347519809,1735899065903,-500.0,9.815e-05,2]
[347519810,1735899065912,-895.35,9.815e-05,2]
[347519811,1735899065921,-1182.52,9.815e-05,2]
[347519812,1735899065930,-541.95,9.815e-05,2]
[347519813,1735899065939,-504.78,9.815e-05,2]
[347519814,1735899065948,-704.61,9.815e-05,2]
[347519815,1735899065957,-933.92,9.815e-05,2]
[347519816,1735899065965,-1126.99,9.815e-05,2]
[347519817,1735899065974,-500.0,9.815e-05,2]
[347519818,1735899065983,-1257.34,9.815e-05,2]
[347519819,1735899065992,-641.11,9.815e-05,2]
[347519820,1735899066001,-642.42,9.815e-05,2]
[347519821,1735899066010,-564.16,9.815e-05,2]
[347519822,1735899066020,-2527.17,9.815e-05,2]
[347519823,1735899066030,-500.0,9.815e-05,2]
[347519824,1735899066039,-1328.29,9.815e-05,2]
[347519825,1735899066048,-787.31,9.815e-05,2]
[347519826,1735899066057,-861.34,9.815e-05,2]
[347519827,1735899066068,-500.0,9.815e-05,2]
[347519828,1735899066079,-500.0,9.815e-05,2]
[347519829,1735899066089,-1626.55,9.815e-05,2]
[347519830,1735899066098,-500.0,9.815e-05,2]
[347519831,1735899066108,-558.89,9.815e-05,2]
[347519832,1735899066118,-500.0,9.815e-05,2]
[347519833,1735899066128,-500.0,9.815e-05,2]
[347519834,1735899066137,-500.0,9.815e-05,2]
[347519835,1735899066147,-1386.59,9.815e-05,2]
[347519836,1735899066156,-2785.41,9.815e-05,2]
[347519837,1735899066166,-500.0,9.815e-05,2]
[347519838,1735899066176,-875.27,9.815e-05,2]
[347519839,1735899066186,-1181.19,9.815e-05,2]
[347519840,1735899066195,-510.24,9.815e-05,2]
[347519841,1735899066205,-1343.36,9.815e-05,2]
[347519842,1735899066214,-500.0,9.815e-05,2]
[347519843,1735899066224,-806.48,9.815e-05,2]
[347519844,1735899066234,-2797.05,9.815e-05,2]
[347519845,1735899066243,-1493.46,9.815e-05,2]
[347519846,1735899066252,-542.59,9.815e-05,2]
[347519847,1735899066263,-3492.68,9.815e-05,2]
[347519848,1735899066272,-500.0,9.815e-05,2]
[347519849,1735899066281,-784.4,9.815e-05,2]
[347519850,1735899066290,-1640.36,9.815e-05,2]
[347519851,1735899066301,-1143.63,9.815e-05,2]
[347519852,1735899066310,-549.8,9.815e-05,2]
[347519853,1735899066319,-979.99,9.815e-05,2]
[347519854,1735899066328,-2052.03,9.815e-05,2]
[347519855,1735899066338,-500.0,9.815e-05,2]
[347519856,1735899066347,-500.0,9.815e-05,2]
[347519857,1735899066356,-967.71,9.815e-05,2]
[347519858,1735899066365,-1095.92,9.815e-05,2]
[347519859,1735899066374,-794.44,9.815e-05,2]
[347519860,1735899066383,-2811.56,9.815e-05,2]
[347519861,1735899066394,-1778.85,9.815e-05,2]
[347519862,1735899066403,-500.0,9.815e-05,2]
[347519863,1735899066414,-500.0,9.815e-05,2]
[347519864,1735899066423,-1250.77,9.815e-05,2]
[347519865,1735899066433,-500.0,9.815e-05,2]
[347519866,1735899066442,-756.38,9.815e-05,2]
[347519867,1735899066452,-612.54,9.815e-05,2]
[347519868,1735899066462,-822.38,9.815e-05,2]
[347519869,1735899066471,-657.68,9.815e-05,2]
[347519870,1735899066480,-500.0,9.815e-05,2]
[347519871,1735899066491,-500.0,9.815e-05,2]
[347519872,1735899066500,-2328.96,9.815e-05,2]
[347519873,1735899066510,-277.36381645,9.815e-05,2]
[347519874,1735899066521,-384.379977,9.815e-05,2]
[347519875,1735899066530,-3102.7,9.815e-05,2]
[347519876,1735899066539,-667.58,9.815e-05,2]
[347519877,1735899066549,-500.0,9.815e-05,2]
[347519878,1735899066559,-1026.14,9.815e-05,2]
[347519879,1735899066568,-500.0,9.815e-05,2]
[347519880,1735899066577,-736.76,9.815e-05,2]
[347519881,1735899066587,-675.27,9.815e-05,2]
[347519882,1735899066597,-500.0,9.815e-05,2]
[347519883,1735899066606,-500.0,9.815e-05,2]
[347519884,1735899066615,-3670.42,9.815e-05,2]
[347519885,1735899066625,-649.25285843,9.815e-05,2]
[347519886,1735899066634,-500.0,9.815e-05,2]
[347519887,1735899066643,-1911.43,9.815e-05,2]
[347519888,1735899066652,-572.42031,9.815e-05,2]
[347519889,1735899066661,-813.26,9.815e-05,2]
[347519890,1735899066670,-500.0,9.815e-05,2]
[347519891,1735899066679,-500.0,9.815e-05,2]
[347519892,1735899066689,-774.31,9.815e-05,2]
[347519893,1735899066698,-672.41,9.815e-05,2]
[347519894,1735899066708,-4533.91,9.815e-05,2]
[347519895,1735899066717,-1084.39,9.815e-05,2]
[347519896,1735899066727,-500.0,9.815e-05,2]
[347519897,1735899066737,-841.21,9.815e-05,2]
[347519898,1735899066750,-621.25122963,9.815e-05,2]
[347519899,1735899066760,-1629.35,9.815e-05,2]
[347519900,1735899066769,-794.76,9.815e-05,2]
[347519901,1735899066778,-1434.93,9.815e-05,2]
[347519902,1735899066787,-500.0,9.815e-05,2]
[347519903,1735899066796,-2007.66,9.815e-05,2]
[347519904,1735899066808,-517.99,9.815e-05,2]
[347519905,1735899066818,-880.0,9.815e-05,2]
[347519906,1735899066828,-1513.11,9.815e-05,2]
[347519907,1735899066837,-500.0,9.815e-05,2]
[347519908,1735899066846,-220.39197896,9.815e-05,2]
[347519909,1735899066856,-5599.2,9.815e-05,2]
[347519910,1735899066866,-500.0,9.815e-05,2]
[347519911,1735899066876,-1279.82,9.815e-05,2]
[347519912,1735899066886,-529.15,9.815e-05,2]
[347519913,1735899066896,-871.61,9.815e-05,2]
[347519914,1735899066905,-616.51,9.815e-05,2]
[347519915,1735899066914,-500.0,9.815e-05,2]
[347519916,1735899066924,-500.0,9.815e-05,2]
[347519917,1735899066933,-2693.09,9.815e-05,2]
[347519918,1735899066943,-2200.43,9.815e-05,2]
[347519919,1735899066953,-1012.43,9.815e-05,2]
[347519920,1735899066962,-658.22,9.815e-05,2]
[347519921,1735899066972,-1456.51,9.815e-05,2]
[347519922,1735899066982,-5405.48,9.815e-05,2]
[347519923,1735899066991,-500.0,9.815e-05,2]
[347519924,1735899067000,-500.0,9.815e-05,2]
[347519925,1735899067010,-1482.84,9.815e-05,2]
[347519926,1735899067021,-500.0,9.815e-05,2]
[347519927,1735899067031,-17364.02,9.815e-05,2]
[347519928,1735899067041,-500.0,9.815e-05,2]
[347519929,1735899067050,-500.0,9.815e-05,2]
[347519930,1735899067060,-500.0,9.815e-05,2]
[347519931,1735899067069,-1414.67,9.815e-05,2]
[347519932,1735899067078,-1958.47,9.815e-05,2]
[347519933,1735899067088,-1407.8,9.815e-05,2]
[347519934,1735899067097,-500.0,9.815e-05,2]
[347519935,1735899067107,-938.53,9.815e-05,2]
[347519936,1735899067117,-500.0,9.815e-05,2]
[347519937,1735899067126,-500.0,9.815e-05,2]
[347519938,1735899067135,-500.0,9.815e-05,2]
[347519939,1735899067144,-2646.53,9.815e-05,2]
[347519940,1735899067154,-500.0,9.815e-05,2]
[347519941,1735899067164,-500.0,9.815e-05,2]
[347519942,1735899067173,-503.81896529,9.815e-05,2]
[347519943,1735899067182,-338.74931246,9.815e-05,2]
[347519944,1735899067192,-654.53,9.815e-05,2]
[347519945,1735899067201,-285.30898531,9.815e-05,2]
[347519946,1735899067211,-500.0,9.815e-05,2]
[347519947,1735899067220,-2862.82,9.815e-05,2]
[347519948,1735899067229,-2111.92,9.815e-05,2]
[347519949,1735899067238,-1898.21,9.815e-05,2]
[347519950,1735899067249,-873.16,9.815e-05,2]
[347519951,1735899067258,-500.0,9.815e-05,2]
[347519952,1735899067268,-500.0,9.815e-05,2]
[347519953,1735899067277,-3493.09,9.815e-05,2]
[347519954,1735899067286,-841.42,9.815e-05,2]
[347519955,1735899067295,-500.0,9.815e-05,2]
[347519956,1735899067305,-500.0,9.815e-05,2]
[347519957,1735899067314,-1486.74,9.815e-05,2]
[347519958,1735899067323,-3016.05,9.815e-05,2]
[347519959,1735899067333,-500.0,9.815e-05,2]
[347519960,1735899067343,-4260.19,9.815e-05,2]
[347519961,1735899067353,-1157.71,9.815e-05,2]
[347519962,1735899067362,-500.0,9.815e-05,2]
[347519963,1735899067371,-513.06,9.815e-05,2]
[347519964,1735899067380,-7947.27,9.815e-05,2]
[347519965,1735899067390,-5956.16,9.815e-05,2]
[347519966,1735899067400,-1067.74,9.815e-05,2]
[347519967,1735899067409,-500.0,9.815e-05,2]
[347519968,1735899067419,-4225.86,9.815e-05,2]
[347519969,1735899067428,-826.63,9.815e-05,2]
[347519970,1735899067438,-550.17,9.815e-05,2]
[347519971,1735899067447,-870.05,9.815e-05,2]
[347519972,1735899067456,-500.0,9.815e-05,2]
[347519973,1735899067466,-2613.87,9.815e-05,2]
[347519974,1735899067475,-1571.54,9.815e-05,2]
[347519975,1735899067485,-1391.92,9.815e-05,2]
[347519976,1735899067495,-11943.79,9.815e-05,2]
[347519977,1735899067504,-686.14,9.815e-05,2]
[347519978,1735899067513,-500.0,9.815e-05,2]
[347519979,1735899067522,-2241.48,9.815e-05,2]
[347519980,1735899067533,-1098.85,9.815e-05,2]
[347519981,1735899067543,-500.0,9.815e-05,2]
[347519982,1735899067552,-500.0,9.815e-05,2]